bitfinex-derivatives/quotes_ETHF0:USTF0_20241026
["timestamp","ask_amount","ask_price","bid_price","bid_amount"]
[1729907990433,0.84105,2444.1,2444.0,1.32785594]
[1729907990731,0.84104,2444.1,2443.7,4.5407]
[1729907991033,0.4313,2444.1,2443.7,4.5407]
[1729907991237,0.40977,2444.0,2443.7,4.5407]
[1729907991831,0.40975,2444.0,2443.9,1.32785594]
[1729908001849,1.24015,2444.0,2443.9,1.32785594]
[1729908002146,0.40978,2443.9,2443.8,1.32785594]
[1729908002348,0.40977,2443.9,2443.8,1.32785594]
[1729908003046,3.2078,2444.0,2443.8,1.32785594]
[1729908003249,3.2078,2444.0,2443.9,1.32785594]
[1729908003449,3.61755,2444.0,2443.9,1.32785594]
[1729908004452,3.61755,2444.0,2443.9,5.41985594]
[1729908005157,3.61755,2444.0,2443.9,1.32785594]
[1729908007551,3.2078,2444.0,2443.9,5.41985594]
[1729908008254,3.6369,2444.4,2443.9,5.41985594]
[1729908008452,3.6369,2444.4,2444.3,1.32785594]
[1729908008652,4.04659,2444.4,2444.3,1.32785594]
[1729908008951,3.61749,2444.4,2444.3,1.32785594]
[1729908011848,3.2078,2444.8,2444.3,5.41905594]
[1729908012159,3.2078,2444.8,2444.2,0.40971]
[1729908012160,0.40966,2444.6,2444.4,0.4108]
[1729908012455,0.40966,2444.6,2444.5,0.8794]
[1729908012652,0.40964,2444.7,2444.5,0.8794]
[1729908013859,0.40964,2444.7,2444.6,1.32785594]
[1729908016164,3.2078,2445.4,2444.6,8.62605594]
[1729908016348,3.61732,2445.4,2445.3,1.32785594]
[1729908017153,4.03192,2445.4,2445.3,1.32785594]
[1729908017456,4.95025594,2445.4,2445.3,1.32785594]
[1729908017668,4.95025594,2445.4,2445.0,0.8483]
[1729908017669,9.03985594,2445.4,2445.0,0.4338]
[1729908017856,0.4096,2445.0,2444.9,1.32785594]
[1729908018160,0.4096,2445.0,2444.3,2.39378635]
[1729908018161,1.32785594,2445.0,2444.3,3.2078]
[1729908018362,1.73750594,2444.6,2444.4,0.8654]
[1729908018557,0.4146,2444.5,2444.4,1.32785594]
[1729908018755,1.24157,2444.5,2444.4,1.32785594]
[1729908020060,2.56942594,2444.5,2444.4,1.32785594]
[1729908020261,0.8319,2444.5,2444.1,0.8524]
[1729908020450,0.40971,2444.3,2444.1,0.8524]
[1729908020855,0.4176,2444.2,2444.1,0.8524]
[1729908021062,0.82732,2444.2,2444.1,0.8524]
[1729908021258,0.82732,2444.2,2444.0,6.08615754]
[1729908021967,0.82732,2444.2,2444.0,2.87835754]
[1729908022761,0.4176,2444.2,2444.0,2.87835754]
[1729908023472,0.82733,2444.2,2444.0,2.87835754]
[1729908024260,0.4176,2444.2,2444.0,2.87835754]
[1729908025054,0.4173,2444.5,2444.1,4.0912]
[1729908025055,0.82698,2444.5,2444.1,4.0912]
[1729908025265,0.82698,2444.5,2444.0,3.28810754]
[1729908025266,0.40968,2444.5,2444.3,2.87835754]
[1729908025467,0.40968,2444.5,2444.4,0.4449]
[1729908029269,0.8802,2444.8,2444.3,2.87835754]
[1729908029576,0.40969,2444.4,2444.3,2.87835754]
[1729908029973,0.40969,2444.4,2444.3,6.96955754]
[1729908031270,0.40969,2444.4,2444.3,2.87835754]
[1729908031466,0.40971,2444.3,2444.1,6.08615754]
[1729908031683,0.40972,2444.2,2444.1,3.2078]
[1729908032075,0.40974,2444.1,2443.9,3.32655754]
[1729908032375,0.4146,2444.0,2443.8,3.2078]
[1729908032580,0.40977,2443.9,2443.8,3.2078]
[1729908032879,0.4098,2443.7,2443.6,0.4125]
[1729908033275,0.8542,2444.0,2443.6,0.4125]
[1729908033579,0.4098,2443.7,2443.6,0.4125]
[1729908033973,0.8542,2444.0,2443.6,0.4125]
[1729908034176,0.4098,2443.8,2443.6,0.4125]
[1729908034675,3.2078,2443.9,2443.4,3.2078]
[1729908035077,0.40981,2443.7,2443.4,3.2078]
[1729908035274,0.4098,2443.8,2443.4,3.2078]
[1729908035577,0.4472,2443.6,2443.4,3.2078]
[1729908037274,0.40989,2443.2,2443.0,0.4125]
[1729908037574,6.53135754,2443.5,2442.7,2.87835754]
[1729908037776,0.4135,2443.1,2442.7,2.87835754]
[1729908037973,0.85513,2443.0,2442.7,2.87835754]
[1729908038379,0.4135,2443.1,2442.9,2.87835754]
[1729908038888,3.2078,2443.8,2443.0,8.1365]
[1729908039086,0.40982,2443.6,2443.2,2.87835754]
[1729908039885,0.40981,2443.7,2443.2,2.87835754]
[1729908040389,3.2078,2443.8,2443.4,2.87835754]
[1729908040592,3.61759,2443.8,2443.5,0.8503]
[1729908041485,0.40978,2443.9,2443.6,2.87835754]
[1729908041686,1.26456,2444.0,2443.6,3.29305754]
[1729908042186,0.8548,2444.0,2443.6,3.29305754]
[1729908043089,1.26456,2444.0,2443.6,3.29305754]
[1729908043791,0.40977,2443.9,2443.6,3.29305754]
[1729908044294,0.8548,2444.0,2443.6,0.4147]
[1729908044490,0.4098,2443.7,2443.5,0.8503]
[1729908045187,0.8548,2444.0,2443.5,0.8503]
[1729908045387,0.4098,2443.8,2443.5,0.8503]
[1729908046488,0.4098,2443.7,2443.5,0.8503]
[1729908047092,0.8548,2444.0,2443.5,0.8503]
[1729908047390,0.8548,2444.0,2443.2,2.87835754]
[1729908047391,0.40985,2443.5,2443.2,2.87835754]
[1729908047598,0.40985,2443.5,2443.2,3.32555754]
[1729908048096,0.4098,2443.7,2443.2,0.4472]
[1729908048296,0.40987,2443.3,2443.2,0.4472]
[1729908048494,0.4096,2443.4,2443.2,0.4472]
[1729908048495,0.81946,2443.4,2443.2,0.4472]
[1729908049587,0.40984,2443.5,2443.2,0.4472]
[1729908051093,0.4096,2443.7,2443.2,3.32555754]
[1729908051396,0.4096,2443.7,2443.2,3.73543754]
[1729908051589,0.40978,2443.9,2443.5,2.87835754]
[1729908051898,0.40978,2443.9,2443.6,1.2521]
[1729908052296,0.40979,2443.8,2443.6,1.2521]
[1729908052594,0.4135,2444.0,2443.2,2.87835754]
[1729908052799,0.40984,2443.6,2443.2,2.87835754]
[1729908052997,0.40984,2443.5,2443.2,2.87835754]
[1729908053200,0.4246,2443.7,2443.1,3.2078]
[1729908053411,0.84366,2443.4,2443.1,3.2078]
[1729908053706,0.40988,2443.3,2443.1,3.2078]
[1729908054302,0.40989,2443.2,2443.1,3.2078]
[1729908056406,4.0928,2443.2,2442.8,3.30645754]
[1729908056601,0.40991,2443.1,2442.8,3.30645754]
[1729908056904,0.4439,2443.3,2442.9,0.4144]
[1729908057701,0.40992,2443.0,2442.8,0.4281]
[1729908058102,0.40992,2443.1,2442.8,0.4281]
[1729908058602,0.40993,2443.0,2442.8,3.30645754]
[1729908060302,0.4439,2443.3,2442.8,3.30645754]
[1729908060303,0.40991,2443.1,2442.8,3.30645754]
[1729908060505,0.4439,2443.3,2442.8,3.30645754]
[1729908060805,0.40991,2443.1,2442.8,3.30645754]
[1729908061906,0.40993,2443.0,2442.8,3.30645754]
[1729908062914,0.4439,2443.3,2442.8,3.30645754]
[1729908063102,0.40991,2443.1,2442.8,3.30645754]
[1729908063306,0.40993,2443.0,2442.8,3.30645754]
[1729908063503,0.40993,2443.0,2442.9,0.444]
[1729908064118,0.4099,2443.2,2442.9,0.444]
[1729908064314,0.85378,2443.3,2442.9,0.444]
[1729908065213,0.40989,2443.2,2442.9,0.444]
[1729908065613,0.4099,2443.2,2442.9,0.444]
[1729908066414,0.4099,2443.2,2443.1,1.32907749]
[1729908067809,5.42187749,2443.2,2442.6,3.6468]
[1729908068010,0.40994,2442.9,2442.8,1.32907749]
[1729908068207,0.40994,2442.9,2442.6,3.6468]
[1729908068517,0.40997,2442.8,2442.6,3.6468]
[1729908068718,0.8594,2442.9,2442.6,0.439]
[1729908069018,0.40997,2442.8,2442.6,0.439]
[1729908069215,1.7784,2442.9,2442.6,0.439]
[1729908069415,1.7784,2442.9,2441.5,3.2078]
[1729908069416,4.62603674,2442.7,2441.5,3.2078]
[1729908069626,0.41015,2441.7,2441.2,1.06593041]
[1729908069914,0.919,2441.7,2441.2,6.49807649]
[1729908070108,1.76161,2441.9,2441.5,3.2078]
[1729908070315,0.41014,2441.7,2441.6,0.8925]
[1729908070509,0.41014,2441.7,2441.1,3.61803]
[1729908070706,0.41014,2441.7,2441.2,0.8723]
[1729908071208,1.3515,2441.9,2441.2,0.8723]
[1729908071413,0.41019,2441.5,2441.2,0.8723]
[1729908071812,3.2078,2441.8,2441.2,4.0801]
[1729908072014,4.1268,2441.8,2441.4,2.88005649]
[1729908072317,1.32913,2441.8,2441.5,3.2078]
[1729908073012,1.32912,2441.8,2441.5,3.2078]
[1729908073913,0.919,2441.8,2441.5,3.2078]
[1729908074309,1.32913,2441.8,2441.5,3.2078]
[1729908074515,0.41015,2441.7,2441.5,3.2078]
[1729908074920,1.3515,2441.9,2441.2,0.8723]
[1729908074921,0.41019,2441.5,2441.2,4.0801]
[1729908075121,0.4102,2441.4,2441.2,4.0801]
[1729908075510,0.4102,2441.4,2441.2,0.8723]
[1729908076012,2.88005649,2441.6,2441.2,0.8723]
[1729908076218,2.88005649,2441.4,2440.7,3.2078]
[1729908076419,0.4252,2441.3,2440.9,0.4399]
[1729908076723,0.41021,2441.3,2440.9,0.4399]
[1729908077420,0.4102,2441.4,2440.9,0.4399]
[1729908077820,3.6274,2441.5,2440.9,0.4399]
[1729908078025,0.4102,2441.4,2440.9,0.4399]
[1729908078822,3.6274,2441.5,2440.9,0.4399]
[1729908079021,0.41013,2441.8,2441.3,3.2078]
[1729908079223,0.41013,2441.8,2441.4,0.4106]
[1729908079427,0.41013,2441.8,2441.5,0.4381]
[1729908079630,4.1268,2442.1,2441.5,0.4381]
[1729908079921,4.53688,2442.1,2441.5,3.72831649]
[1729908080225,3.2078,2442.1,2441.5,3.31815649]
[1729908080531,0.41009,2442.0,2441.5,3.72832649]
[1729908080825,3.61788,2442.1,2441.5,3.72832649]
[1729908081017,3.2078,2442.1,2441.5,3.72832649]
[1729908081217,3.2078,2442.1,2441.5,3.31815649]
[1729908081418,0.41009,2442.0,2441.5,3.31815649]
[1729908081613,3.61788,2442.1,2441.5,3.72831649]
[1729908083327,0.919,2442.4,2441.9,6.08785649]
[1729908083525,1.32903,2442.4,2442.0,0.4475]
[1729908083721,0.919,2442.4,2442.1,0.437]
[1729908084228,0.41001,2442.5,2442.1,0.437]
[1729908084428,3.2078,2442.6,2442.3,2.88005649]
[1729908084819,3.2078,2442.6,2442.2,3.2078]
[1729908084820,3.61779,2442.6,2442.2,3.2078]
[1729908085017,3.2078,2442.6,2442.2,3.2078]
[1729908085417,3.2078,2442.6,2442.2,3.61784]
[1729908085621,3.2078,2442.6,2442.2,3.2078]
[1729908085824,0.83536,2442.8,2442.3,0.41004]
[1729908086626,6.54125649,2443.1,2442.5,3.2078]
[1729908086825,3.6612,2443.1,2442.7,2.88005649]
[1729908087032,0.40988,2443.3,2442.8,4.04215]
[1729908087325,0.40988,2443.3,2442.8,3.6322]
[1729908087527,0.40988,2443.3,2442.8,4.04215]
[1729908087732,3.61761,2443.7,2443.1,6.49774649]
[1729908088033,0.40983,2443.6,2443.1,6.08785649]
[1729908088232,1.32879,2443.8,2443.1,6.08785649]
[1729908088429,1.32879,2443.8,2443.2,0.83669]
[1729908088629,0.919,2443.8,2443.2,0.4268]
[1729908088830,0.40982,2443.6,2443.2,0.4268]
[1729908089431,2.88005649,2443.8,2443.2,0.4268]
[1729908089736,0.40981,2443.7,2443.2,0.4268]
[1729908090029,0.40982,2443.6,2443.2,0.4268]
[1729908090229,3.2078,2443.6,2443.1,3.2078]
[1729908090435,3.2078,2443.6,2443.1,6.08785649]
[1729908091525,0.40984,2443.5,2443.1,6.08785649]
[1729908091725,3.2078,2443.6,2443.0,3.2078]
[1729908091726,0.40988,2443.3,2443.0,3.2078]
[1729908092128,0.40988,2443.3,2442.9,2.88005649]
[1729908092721,0.40986,2443.4,2442.9,2.88005649]
[1729908092931,0.4099,2443.2,2442.8,0.4244]
[1729908093231,3.6399,2443.3,2442.8,0.4244]
[1729908094836,3.2078,2443.3,2442.9,2.88005649]
[1729908095735,3.61767,2443.3,2442.9,2.88005649]
[1729908096132,0.40986,2443.4,2442.9,2.88005649]
[1729908096333,0.40984,2443.5,2443.0,3.2078]
[1729908096636,0.918,2443.6,2443.1,2.88005649]
[1729908096637,0.40983,2443.6,2443.1,2.88005649]
[1729908096830,0.40985,2443.5,2443.0,3.2078]
[1729908097837,3.2078,2443.7,2443.0,3.2078]
[1729908098037,0.40987,2443.4,2443.0,3.2078]
[1729908098232,0.40988,2443.3,2443.0,3.2078]
[1729908098432,0.40986,2443.4,2443.0,3.2078]
[1729908099240,0.918,2443.6,2443.0,3.2078]
[1729908099446,0.40986,2443.4,2443.0,3.2078]
[1729908099638,7.00585649,2443.6,2443.0,3.2078]
[1729908099940,0.84329,2443.3,2442.8,0.4244]
[1729908100140,0.4386,2443.2,2442.8,0.4244]
[1729908100842,0.8485,2443.2,2442.8,0.4244]
[1729908102944,0.4386,2443.2,2442.8,0.4244]
[1729908103145,0.4334,2443.3,2443.0,3.2078]
[1729908103344,0.84328,2443.3,2443.0,3.2078]
[1729908103746,0.4334,2443.3,2443.0,3.2078]
[1729908104747,0.84329,2443.3,2443.0,3.2078]
[1729908105332,0.84329,2443.3,2442.8,0.4244]
[1729908106639,0.4334,2443.3,2442.8,0.4244]
[1729908106846,0.40992,2443.1,2442.8,0.4244]
[1729908107034,3.6412,2443.3,2442.8,0.4244]
[1729908107239,4.05109,2443.3,2442.8,0.4244]
[1729908108153,3.6412,2443.3,2442.8,0.4244]
[1729908108346,0.40991,2443.1,2442.8,0.4244]
[1729908108644,3.6412,2443.3,2442.8,0.4244]
[1729908108846,0.4099,2443.2,2442.8,0.4244]
[1729908109047,3.6412,2443.3,2442.8,0.4244]
[1729908109251,0.40991,2443.1,2442.8,0.4244]
[1729908109554,0.83103,2443.0,2442.8,0.4244]
[1729908111151,0.4211,2443.0,2442.8,0.4244]
[1729908113654,0.83102,2443.0,2442.8,0.4244]
[1729908114358,0.4211,2443.0,2442.8,0.4244]
[1729908114752,0.83102,2443.0,2442.8,0.4244]
[1729908115258,0.4211,2443.0,2442.8,0.4244]
[1729908116653,0.83102,2443.0,2442.8,0.4244]
[1729908117059,0.4211,2443.0,2442.8,0.4244]
[1729908117459,0.4099,2443.2,2442.8,0.4244]
[1729908117649,3.6412,2443.3,2442.8,0.4244]
[1729908117855,0.4099,2443.2,2442.8,0.4244]
[1729908118356,4.05108,2443.3,2442.8,0.83435]
[1729908118957,4.05108,2443.3,2442.8,0.4244]
[1729908119354,4.05108,2443.3,2442.8,0.83435]
[1729908119855,3.6412,2443.3,2442.8,0.4244]
[1729908120159,4.05108,2443.3,2442.8,0.4244]
[1729908120561,0.4099,2443.2,2442.8,0.4244]
[1729908120753,0.40992,2443.1,2442.8,0.4244]
[1729908120956,0.40991,2443.1,2442.8,0.4244]
[1729908121156,3.6412,2443.3,2442.8,0.4244]
[1729908121458,0.4099,2443.2,2442.8,0.4244]
[1729908121862,0.40991,2443.1,2442.8,0.4244]
[1729908123262,0.4099,2443.2,2442.8,0.4244]
[1729908123463,0.4334,2443.3,2442.8,0.4244]
[1729908123662,0.4099,2443.2,2442.8,0.4244]
[1729908124160,0.40991,2443.1,2442.8,0.4244]
[1729908124365,0.4334,2443.3,2442.8,0.4244]
[1729908124583,0.4099,2443.2,2442.8,0.4244]
[1729908125167,0.40991,2443.1,2442.8,0.4244]
[1729908125665,0.4099,2443.2,2442.8,0.4244]
[1729908126367,0.40991,2443.1,2442.8,0.4244]
[1729908126958,0.40994,2442.9,2442.4,3.2078]
[1729908127160,0.40997,2442.7,2442.3,4.498]
[1729908127365,0.8803,2442.8,2442.3,4.498]
[1729908127971,0.8803,2442.8,2442.3,1.2902]
[1729908128168,0.41001,2442.5,2442.3,1.2902]
[1729908129068,0.8803,2442.8,2442.2,3.2078]
[1729908129372,0.41003,2442.4,2442.2,3.6424]
[1729908130366,0.41004,2442.3,2442.2,3.6424]
[1729908130664,0.41003,2442.4,2442.2,3.2078]
[1729908133268,0.40997,2442.7,2442.3,6.97445649]
[1729908133469,0.8803,2442.8,2442.6,2.88005649]
[1729908133674,0.4504,2442.8,2442.6,2.88005649]
[1729908133865,0.4504,2442.8,2442.7,0.4379]
[1729908134671,0.86036,2442.8,2442.5,3.2078]
[1729908134870,0.4504,2442.8,2442.5,3.2078]
[1729908135570,0.86037,2442.8,2442.5,3.2078]
[1729908135972,0.4504,2442.8,2442.5,3.2078]
[1729908136270,0.86036,2442.8,2442.5,3.2078]
[1729908137461,0.4504,2442.8,2442.5,3.2078]
[1729908138171,0.86036,2442.8,2442.5,3.2078]
[1729908138973,0.4504,2442.8,2442.5,3.2078]
[1729908142474,0.40994,2442.9,2442.6,2.88005649]
[1729908142868,0.40994,2442.9,2442.7,0.4305]
[1729908143674,0.40995,2442.8,2442.7,0.4305]
[1729908143879,4.0936,2443.0,2442.4,1.50383041]
[1729908144081,0.41001,2442.5,2442.3,0.4235]
[1729908144579,0.41002,2442.5,2442.3,0.4235]
[1729908144768,0.8902,2442.7,2442.2,0.4233]
[1729908145170,0.41004,2442.3,2442.2,0.4233]
[1729908146573,0.41004,2442.3,2442.1,0.4378]
[1729908146978,0.8902,2442.7,2442.1,0.4378]
[1729908147173,0.41003,2442.4,2442.1,0.4378]
[1729908147379,0.4187,2442.3,2442.1,3.31785649]
[1729908150779,0.4187,2442.3,2442.0,15.54291611]
[1729908151883,0.4187,2442.3,2442.1,2.88005649]
[1729908152282,0.41003,2442.4,2442.1,2.88005649]
[1729908153381,0.4229,2442.6,2442.1,2.88005649]
[1729908153580,1.3409,2442.6,2442.0,12.33511611]
[1729908154089,0.41005,2442.3,2442.0,12.33511611]
[1729908155288,1.3409,2442.6,2442.0,12.33511611]
[1729908155289,0.41006,2442.2,2442.0,12.33511611]
[1729908155484,0.41006,2442.2,2441.8,1.06593041]
[1729908155485,6.08785649,2442.4,2441.7,1.06593041]
[1729908155783,6.08785649,2442.4,2441.7,0.8908]
[1729908155784,0.41012,2441.8,2441.7,0.8908]
[1729908156282,0.41016,2441.6,2441.4,3.2078]
[1729908156480,0.41017,2441.6,2441.4,3.2078]
[1729908157080,0.41017,2441.6,2441.3,3.76655649]
[1729908157081,0.41017,2441.5,2441.3,0.8865]
[1729908157383,0.428,2441.5,2441.3,0.8865]
[1729908158390,0.41022,2441.3,2441.1,3.2078]
[1729908158584,0.41022,2441.2,2440.9,0.8622]
[1729908159290,0.428,2441.5,2440.9,0.8622]
[1729908159491,3.6358,2441.5,2440.9,0.8622]
[1729908159686,0.41025,2441.1,2440.9,0.8622]
[1729908161286,0.4103,2440.8,2440.4,6.08785649]
[1729908161486,0.4103,2440.8,2440.5,0.9]
[1729908161885,0.41031,2440.7,2440.5,0.9]
[1729908162188,0.8597,2441.0,2440.5,0.9]
[1729908162391,0.41029,2440.9,2440.5,0.9]
[1729908164284,0.8597,2441.0,2440.5,0.9]
[1729908164592,0.4103,2440.8,2440.5,0.9]
[1729908164791,0.8597,2441.0,2440.5,0.9]
[1729908165291,0.41028,2440.9,2440.5,0.9]
[1729908167383,0.41029,2440.8,2440.5,0.9]
[1729908168598,0.8597,2441.0,2440.5,0.9]
[1729908168599,0.41028,2440.9,2440.5,0.9]
[1729908170091,0.8597,2441.0,2440.5,0.9]
[1729908170294,0.41027,2440.9,2440.5,0.9]
[1729908170788,0.4103,2440.8,2440.5,0.9]
[1729908170996,0.4103,2440.8,2440.4,3.6477]
[1729908171692,0.41031,2440.7,2440.4,3.6477]
[1729908171996,0.41031,2440.7,2440.4,3.2078]
[1729908172194,0.4458,2440.6,2440.4,3.2078]
[1729908173190,2.88005649,2440.9,2440.4,3.2078]
[1729908173387,0.41031,2440.7,2440.4,3.2078]
[1729908174189,0.41034,2440.6,2440.3,0.4099]
[1729908174497,3.6536,2440.8,2440.3,0.4099]
[1729908174793,0.4269,2440.5,2440.1,3.6491]
[1729908174995,0.41039,2440.2,2440.1,3.2078]
[1729908175199,0.41041,2440.1,2440.0,17.94873717]
[1729908175591,0.41043,2440.0,2439.8,3.2078]
[1729908176291,0.41042,2440.1,2439.8,3.2078]
[1729908176792,0.918,2440.3,2439.8,3.2078]
[1729908177190,0.41042,2440.1,2439.8,3.2078]
[1729908178191,0.918,2440.3,2439.8,3.2078]
[1729908178192,0.41039,2440.2,2439.8,3.2078]
[1729908178391,0.41042,2440.1,2439.8,3.2078]
[1729908179187,0.918,2440.3,2439.8,3.2078]
[1729908179807,0.41042,2440.1,2439.7,0.4523]
[1729908180003,0.918,2440.3,2439.8,3.2078]
[1729908180301,0.4104,2440.2,2439.8,3.2078]
[1729908180802,0.918,2440.3,2439.8,3.61825]
[1729908181397,0.86157,2440.4,2439.8,3.2078]
[1729908181598,0.4269,2440.5,2440.1,3.2078]
[1729908181898,2.88005649,2440.4,2440.2,1.2925]
[1729908182105,3.29042649,2440.4,2440.2,1.2925]
[1729908182700,0.41037,2440.3,2440.2,1.2925]
[1729908182896,2.88005649,2440.4,2439.8,3.2078]
[1729908183102,0.4382,2440.2,2439.8,3.2078]
[1729908183300,3.31825649,2440.2,2439.8,3.2078]
[1729908183696,0.41042,2440.1,2439.8,3.2078]
[1729908183891,0.41044,2439.9,2439.7,0.8768]
[1729908184094,0.4401,2440.0,2439.7,0.8768]
[1729908184297,3.32015649,2440.0,2439.5,0.4157]
[1729908184692,0.41047,2439.8,2439.5,0.4157]
[1729908185100,0.41049,2439.6,2439.2,3.2078]
[1729908185293,2.88005649,2439.8,2439.3,0.423]
[1729908185294,0.84348,2439.7,2439.3,0.423]
[1729908185702,0.4105,2439.6,2439.3,0.423]
[1729908186295,0.41051,2439.5,2439.3,0.423]
[1729908186500,0.4105,2439.6,2439.3,0.423]
[1729908186902,0.41049,2439.6,2439.3,0.423]
[1729908187601,0.85054,2440.0,2439.3,0.423]
[1729908187803,1.76854,2440.0,2439.5,3.6183]
[1729908188003,1.76854,2440.0,2439.6,0.4523]
[1729908188201,0.918,2440.0,2439.6,1.28819]
[1729908188706,1.32843,2440.0,2439.6,0.8777]
[1729908189295,0.918,2440.0,2439.6,1.28819]
[1729908189496,2.88005649,2440.1,2439.6,1.28819]
[1729908189697,2.88005649,2440.1,2439.6,1.28818]
[1729908189901,2.88005649,2440.1,2439.6,0.8777]
[1729908190206,3.29047649,2440.1,2439.6,0.8777]
[1729908190801,0.41043,2440.0,2439.6,0.8777]
[1729908191800,3.29047649,2440.1,2439.6,0.8777]
[1729908192198,2.88005649,2439.9,2439.5,3.2078]
[1729908192404,6.08785649,2439.7,2439.1,3.2078]
[1729908192612,6.08785649,2439.7,2438.9,0.4441]
[1729908192613,2.88005649,2439.4,2438.9,0.4441]
[1729908192904,2.88005649,2439.4,2439.0,0.4292]
[1729908192905,0.41057,2439.2,2439.0,0.4292]
[1729908193314,0.83565,2439.3,2439.0,0.4292]
[1729908193703,0.4251,2439.3,2439.0,0.4292]
[1729908193909,0.83564,2439.3,2439.0,0.4292]
[1729908194913,0.4251,2439.3,2439.0,0.4292]
[1729908195303,0.83565,2439.3,2439.0,0.4292]
[1729908196206,0.4251,2439.3,2439.0,0.4292]
[1729908196410,3.29059649,2439.4,2439.0,0.4292]
[1729908197107,2.88005649,2439.4,2439.0,0.4292]
[1729908197309,0.41055,2439.3,2439.0,0.4292]
[1729908197708,3.29058649,2439.4,2439.0,0.4292]
[1729908198207,0.41055,2439.3,2439.0,0.4292]
[1729908198513,0.41057,2439.2,2439.0,0.4292]
[1729908198706,0.41056,2439.3,2439.0,0.4292]
[1729908199507,2.88005649,2439.4,2439.0,0.4292]
[1729908199508,0.41058,2439.2,2439.0,0.4292]
[1729908199712,0.85618,2439.2,2439.0,0.4292]
[1729908200211,4.1,2439.1,2438.8,1.50533041]
[1729908200513,4.1,2439.1,2438.7,1.59611227]
[1729908200514,0.41064,2438.7,2438.6,1.06593041]
[1729908200711,0.41068,2438.5,2438.4,1.06593041]
[1729908200921,0.41067,2438.6,2438.2,0.8547]
[1729908201106,3.32565649,2438.8,2438.2,1.92063041]
[1729908201307,2.88005649,2438.5,2438.2,0.8547]
[1729908201609,0.4107,2438.4,2438.2,0.8547]
[1729908202205,6.98165649,2438.3,2438.0,4.27373041]
[1729908202406,2.88005649,2438.1,2437.7,1.89313041]
[1729908202909,2.88005649,2438.2,2437.8,3.2078]
[1729908203212,3.32905649,2438.5,2437.8,4.27373041]
[1729908203409,3.79805649,2438.6,2438.1,3.2078]
[1729908203617,3.79805649,2438.6,2438.2,0.4172]
[1729908203914,2.88005649,2438.5,2438.2,0.4172]
[1729908205617,0.4172,2438.8,2438.2,0.4172]
[1729908205817,3.29995649,2438.9,2438.4,3.61849]
[1729908206114,3.71056649,2438.9,2438.4,3.2078]
[1729908206425,3.2078,2439.2,2438.8,3.2078]
[1729908206608,2.88005649,2439.3,2438.9,0.4353]
[1729908206812,2.88005649,2439.1,2438.9,0.4353]
[1729908208518,2.88005649,2439.1,2438.8,3.2078]
[1729908208821,2.88005649,2439.1,2438.8,3.6256]
[1729908210813,3.29060649,2439.3,2438.8,3.6256]
[1729908211221,2.88005649,2439.3,2438.8,3.6256]
[1729908211419,0.41057,2439.2,2438.8,3.6256]
[1729908211920,2.88005649,2439.1,2438.6,3.2078]
[1729908212120,0.4106,2439.0,2438.5,0.8947]
[1729908212319,0.41062,2438.9,2438.5,0.8947]
[1729908212512,2.88005649,2438.9,2438.3,4.27373041]
[1729908212712,3.29070649,2438.7,2438.2,0.4435]
[1729908212916,0.444,2438.6,2438.2,0.4435]
[1729908213117,0.444,2438.6,2438.3,3.2078]
[1729908214322,0.8883,2438.6,2438.3,3.2078]
[1729908216422,4.1258,2438.9,2438.4,0.41069]
[1729908216423,0.918,2438.9,2438.4,0.41069]
[1729908216624,0.918,2438.9,2438.3,3.638]
[1729908216625,1.32862,2438.9,2438.3,3.638]
[1729908216928,0.4106,2439.0,2438.4,0.41069]
[1729908217826,0.41061,2438.9,2438.3,4.0487]
[1729908218621,4.15944649,2439.1,2438.4,0.41069]
[1729908218827,1.27938,2439.1,2438.6,3.2078]
[1729908219224,0.8688,2439.1,2438.7,0.85594]
[1729908219928,0.8688,2439.1,2438.7,0.4453]
[1729908223330,0.8688,2439.1,2438.8,0.4116]
[1729908225128,1.27939,2439.1,2438.7,0.4453]
[1729908225429,0.8688,2439.1,2438.7,0.4453]
[1729908227430,0.4106,2439.0,2438.7,0.4453]
[1729908228525,4.15944649,2439.1,2438.7,0.4453]
[1729908228927,3.74885649,2439.1,2438.7,0.4453]
[1729908229232,0.41059,2439.0,2438.7,0.4453]
[1729908229639,3.74885649,2439.1,2438.7,0.4453]
[1729908230029,0.8513,2439.0,2438.7,0.4453]
[1729908230231,0.41062,2438.9,2438.7,0.4453]
[1729908230926,0.41062,2438.9,2438.5,0.4413]
[1729908230927,0.4407,2439.0,2438.5,0.4413]
[1729908231127,0.41062,2438.9,2438.5,0.4413]
[1729908231929,0.8513,2439.0,2438.5,0.85198]
[1729908232433,0.8513,2439.0,2438.5,0.4413]
[1729908232636,0.4407,2439.0,2438.5,0.4413]
[1729908233039,0.8513,2439.0,2438.5,0.4413]
[1729908233636,0.8513,2439.0,2438.6,3.2078]
[1729908233834,0.4407,2439.0,2438.6,3.2078]
[1729908234038,0.8513,2439.0,2438.6,3.2078]
[1729908236548,0.41062,2438.9,2438.6,3.2078]
[1729908237537,0.8513,2439.0,2438.6,3.2078]
[1729908238136,0.8513,2439.0,2438.6,3.61846]
[1729908238338,0.8513,2439.0,2438.6,3.2078]
[1729908238543,0.8513,2439.0,2438.4,1.91032041]
[1729908238544,0.41062,2438.9,2438.4,1.91032041]
[1729908238748,2.88005649,2438.7,2438.4,1.06593041]
[1729908239045,0.4107,2438.4,2438.2,0.4487]
[1729908239948,3.29074649,2438.5,2438.2,0.4487]
[1729908240147,2.88005649,2438.5,2438.2,0.4487]
[1729908240343,0.4107,2438.4,2438.2,0.4487]
[1729908240547,2.88005649,2438.5,2438.1,0.4467]
[1729908240752,0.41069,2438.4,2438.1,0.4467]